bitfinex/quotes_BTCUSD_20220211
["timestamp","ask_amount","ask_price","bid_price","bid_amount"]
[1644541580068,0.057376,43615.0,43606.0,0.00047282]
[1644541580266,0.323415,43614.0,43606.0,0.00047282]
[1644541580466,0.24215257,43611.0,43606.0,0.00047282]
[1644541580665,0.323415,43610.0,43606.0,0.00047282]
[1644541581067,0.323415,43610.0,43600.0,0.08341295]
[1644541581267,0.323415,43610.0,43606.0,0.00047283]
[1644541581466,0.31887947,43609.0,43606.0,0.00047283]
[1644541581665,0.323415,43608.0,43606.0,0.00047283]
[1644541581868,0.24215257,43611.0,43606.0,0.00047283]
[1644541582071,0.323415,43610.0,43606.0,0.00047283]
[1644541582343,0.05738,43612.0,43593.0,0.31407692]
[1644541582538,0.0125617,43617.0,43607.0,0.19086389]
[1644541582739,0.0125617,43617.0,43607.0,0.26985206]
[1644541582936,0.06299162,43631.0,43607.0,0.26985206]
[1644541583135,0.06299162,43631.0,43617.0,0.07723631]
[1644541583136,0.25901528,43631.0,43617.0,0.07723631]
[1644541583336,0.25901528,43631.0,43608.0,0.3]
[1644541583337,0.22016332,43629.0,43608.0,0.3]
[1644541583539,0.32858549,43626.0,43621.0,0.27150714]
[1644541583739,0.01962352,43631.0,43621.0,0.27150714]
[1644541584335,0.01962352,43631.0,43622.0,0.08041983]
[1644541584536,0.01962352,43631.0,43630.0,0.08478507]
[1644541584742,0.32885799,43631.0,43630.0,0.08478507]
[1644541585136,0.30923447,43631.0,43630.0,0.08478507]
[1644541585438,0.30923447,43631.0,43621.0,0.27150714]
[1644541585842,0.19586715,43629.0,43617.0,0.24481142]
[1644541586075,0.30923447,43631.0,43617.0,0.24481142]
[1644541586475,0.30923447,43631.0,43624.0,0.07722587]
[1644541586881,0.40923447,43631.0,43624.0,0.07222587]
[1644541587077,0.323415,43630.0,43624.0,0.07222587]
[1644541587282,0.40923447,43631.0,43624.0,0.07222587]
[1644541587475,0.63576447,43631.0,43624.0,0.07222587]
[1644541587676,0.63576447,43631.0,43617.0,0.24481142]
[1644541587878,0.34272596,43623.0,43618.0,0.27527455]
[1644541588080,0.27299619,43628.0,43618.0,0.27527455]
[1644541588680,0.27299619,43628.0,43616.0,0.4955]
[1644541588880,0.27299619,43628.0,43622.0,0.08894286]
[1644541589081,0.1,43631.0,43622.0,0.08894286]
[1644541589580,0.323415,43630.0,43629.0,0.07088549]
[1644541589829,0.1,43631.0,43629.0,0.07088549]
[1644541590419,0.1,43631.0,43616.0,0.4955]
[1644541591220,0.21573923,43622.0,43616.0,0.80828731]
[1644541591423,0.05736,43627.0,43618.0,0.06618167]
[1644541591622,0.1,43631.0,43619.0,0.30731762]
[1644541591819,0.42,43642.0,43619.0,0.30731762]
[1644541591820,0.51874246,43642.0,43619.0,0.30731762]
[1644541592220,0.0005258,43634.0,43619.0,0.30731762]
[1644541592423,0.19282109,43632.0,43626.0,0.17469962]
[1644541592620,0.39529681,43634.0,43626.0,0.17469962]
[1644541592823,0.05787353,43634.0,43626.0,0.17469962]
[1644541593219,0.05734773,43634.0,43626.0,0.17469962]
[1644541593422,0.05787358,43634.0,43626.0,0.26462602]
[1644541593864,0.25199711,43634.0,43626.0,0.26462602]
[1644541594064,0.25199711,43634.0,43628.0,0.23275699]
[1644541594264,0.25147126,43634.0,43626.0,0.17469962]
[1644541594465,0.25147126,43634.0,43619.0,0.30731762]
[1644541594664,0.25147126,43634.0,43617.0,0.33145468]
[1644541594665,0.05787553,43634.0,43617.0,0.33145468]
[1644541594872,0.05787553,43634.0,43622.0,0.057344]
[1644541594873,0.0005278,43634.0,43622.0,0.057344]
[1644541595468,0.0005278,43634.0,43617.0,0.3]
[1644541595669,0.33296946,43623.0,43616.0,0.4955]
[1644541595876,0.33296946,43623.0,43605.0,0.01856716]
[1644541595877,0.05736384,43622.0,43610.0,7.2e-05]
[1644541596073,0.05736384,43622.0,43609.0,7.2e-05]
[1644541596269,0.05736384,43622.0,43605.0,0.01856716]
[1644541596468,0.43141322,43623.0,43606.0,0.08538436]
[1644541596670,0.43141322,43623.0,43614.0,0.25267407]
[1644541596870,0.43141322,43623.0,43620.0,0.08646681]
[1644541596871,0.05736516,43622.0,43620.0,0.08646681]
[1644541597071,0.05736516,43622.0,43614.0,0.25267407]
[1644541597072,0.323415,43622.0,43614.0,0.25267407]
[1644541597341,0.09871975,43623.0,43614.0,0.25267407]
[1644541597532,0.14907016,43634.0,43614.0,0.25267407]
[1644541597932,0.2702663,43626.0,43614.0,0.25267407]
[1644541598130,0.2702663,43626.0,43614.0,0.3333959]
[1644541598531,0.2702663,43626.0,43621.0,0.08281757]
[1644541598931,0.05734892,43633.0,43621.0,0.08281757]
[1644541599133,0.323415,43632.0,43621.0,0.08281757]
[1644541599533,0.31334575,43632.0,43621.0,0.08281757]
[1644541599935,0.323415,43631.0,43620.0,0.1956181]
[1644541600135,0.35528885,43632.0,43621.0,0.35479497]
[1644541600340,0.41263816,43632.0,43621.0,0.35479497]
[1644541600536,0.09929241,43632.0,43621.0,0.35479497]
[1644541601167,0.3420468,43631.0,43624.0,0.08916138]
[1644541601367,0.34138817,43631.0,43621.0,0.35479497]
[1644541601568,0.323415,43630.0,43621.0,0.35479497]
[1644541601767,0.34138817,43631.0,43620.0,0.1956181]
[1644541601968,0.323415,43629.0,43620.0,0.1956181]
[1644541602171,0.11472214,43629.0,43615.0,7.2e-05]
[1644541602372,0.057362,43626.0,43614.0,0.00190075]
[1644541602571,0.323415,43622.0,43614.0,0.00190075]
[1644541602772,0.42964929,43621.0,43612.0,7.2e-05]
[1644541602974,0.42964929,43621.0,43611.0,0.00237612]
[1644541602975,0.05737572,43619.0,43611.0,0.00237612]
[1644541603170,0.23274676,43613.0,43611.0,0.00237612]
[1644541603370,0.05,43620.0,43611.0,0.00237612]
[1644541603371,0.1,43621.0,43611.0,0.00237612]
[1644541603573,0.1,43621.0,43620.0,0.07976681]
[1644541603772,0.1,43632.0,43620.0,0.07976681]
[1644541604171,0.05735245,43631.0,43620.0,0.07976681]
[1644541604371,0.25652778,43630.0,43620.0,0.07976681]
[1644541604570,0.31388278,43630.0,43620.0,0.07976681]
[1644541605015,0.31388278,43630.0,43618.0,0.24074555]
[1644541605917,0.31388278,43630.0,43618.0,0.49914151]
[1644541605918,0.05735441,43628.0,43618.0,0.49914151]
[1644541606317,0.25652778,43630.0,43624.0,0.08324677]
[1644541606520,0.25652778,43630.0,43618.0,0.49914151]
[1644541606921,0.25516151,43627.0,43618.0,0.49914151]
[1644541607119,0.25516151,43627.0,43618.0,0.24074555]
[1644541607321,0.0573539,43628.0,43618.0,0.24074555]
[1644541607723,0.0573539,43628.0,43618.0,0.23574555]
[1644541608024,0.0573539,43628.0,43621.0,0.07315859]
[1644541608220,0.0573539,43628.0,43617.0,0.3367075]
[1644541608422,0.05735782,43626.0,43617.0,0.3367075]
[1644541608873,0.1,43632.0,43617.0,0.3367075]
[1644541609271,0.1,43632.0,43631.0,0.29279158]
[1644541609670,0.1,43632.0,43631.0,0.22934923]
[1644541610676,0.1,43632.0,43629.0,0.0855336]
[1644541610876,0.1,43632.0,43623.0,0.114682]
[1644541611076,0.1,43632.0,43614.0,0.00190567]
[1644541611077,0.67843468,43631.0,43616.0,7.2e-05]
[1644541611276,0.323415,43630.0,43618.0,7.2e-05]
[1644541611474,0.35501968,43631.0,43605.0,0.5]
[1644541611475,1.323415,43628.0,43605.0,0.14834394]
[1644541611674,0.43097185,43627.0,43606.0,0.00013097]
[1644541611873,0.21004276,43624.0,43612.0,0.08876583]
[1644541612073,0.26740328,43624.0,43612.0,0.08876583]
[1644541612319,0.31181432,43622.0,43615.0,0.27347973]
[1644541612513,0.31181432,43622.0,43613.0,0.00013097]
[1644541612714,0.31181432,43622.0,43611.0,0.00013097]
[1644541612917,0.31181432,43622.0,43601.0,0.19153224]
[1644541612918,0.323415,43621.0,43610.0,0.00013097]
[1644541613115,0.36819119,43620.0,43609.0,0.00013097]
[1644541613321,0.323415,43619.0,43600.0,0.0001]
[1644541613515,0.36819119,43620.0,43600.0,0.0001]
[1644541613718,0.24036277,43616.0,43607.0,0.08498652]
[1644541613921,0.34036277,43616.0,43607.0,0.08498652]
[1644541614316,0.26625915,43615.0,43608.0,0.27675122]
[1644541614515,0.26625915,43615.0,43607.0,0.08498652]
[1644541615317,0.10042821,43616.0,43607.0,0.08498652]
[1644541615717,0.15779882,43616.0,43607.0,0.08498652]
[1644541615920,0.15737061,43616.0,43606.0,0.057369]
[1644541616164,0.15793995,43616.0,43609.0,0.00047052]
[1644541616364,0.39678029,43616.0,43609.0,0.00047052]
[1644541616664,0.15793995,43616.0,43609.0,0.00047052]
[1644541616865,0.10056934,43616.0,43609.0,0.00047052]
[1644541617165,0.1,43616.0,43609.0,0.07604162]
[1644541617364,0.26277167,43614.0,43610.0,0.00047051]
[1644541617565,0.10056935,43616.0,43610.0,0.00047051]
[1644541617764,0.3534484,43616.0,43610.0,0.00047051]
[1644541617964,0.323415,43615.0,43610.0,0.00047051]
[1644541618166,0.32343,43615.0,43610.0,0.00047051]
[1644541618367,0.35287905,43616.0,43606.0,0.00013097]
[1644541618570,0.2609097,43614.0,43610.0,0.00047051]
[1644541618866,0.2605497,43614.0,43610.0,0.00047051]
[1644541619066,0.3534484,43616.0,43610.0,0.00047051]
[1644541619467,0.05736945,43615.0,43610.0,0.00047051]
[1644541619666,0.05736945,43615.0,43607.0,0.08488809]
[1644541619927,0.32343,43614.0,43605.0,0.00013097]
[1644541620127,0.05738,43612.0,43604.0,0.00013097]
[1644541620331,0.05738,43612.0,43600.0,0.0001]
[1644541620334,0.32343,43611.0,43600.0,0.0001]
[1644541620524,0.17215689,43609.0,43600.0,0.0001]
[1644541620728,0.41193,43608.0,43600.0,0.0001]
[1644541620928,0.52312581,43601.0,43600.0,0.0001]
[1644541621723,0.32343,43601.0,43600.0,0.0001]
[1644541621929,0.380824,43601.0,43600.0,0.0001]
[1644541622324,0.74773351,43601.0,43600.0,0.0001]
[1644541622525,0.32343,43599.0,43583.0,0.3]
[1644541622728,0.32343,43599.0,43582.0,0.02002413]
[1644541622729,0.057412,43594.0,43582.0,0.02002413]
[1644541622931,1.13755879,43598.0,43582.0,0.02002413]
[1644541622932,0.114833,43592.0,43582.0,0.02002413]
[1644541623129,0.33781618,43583.0,43582.0,0.00402413]
[1644541623328,0.71866618,43583.0,43582.0,0.00402413]
[1644541623581,0.0385,43591.0,43582.0,0.08154744]
[1644541623785,0.25663004,43598.0,43589.0,0.08703374]
[1644541623979,0.32343,43597.0,43589.0,0.08703374]
[1644541624178,0.05739565,43597.0,43589.0,0.08703374]
[1644541624380,1.0,43595.0,43575.0,0.3]
[1644541624679,1.00054104,43595.0,43590.0,0.00037084]
[1644541624879,0.32343,43594.0,43590.0,0.00037084]
[1644541625078,0.37343,43594.0,43590.0,0.00037084]
[1644541625278,0.11481876,43591.0,43590.0,0.00037084]
[1644541625477,0.43824876,43591.0,43590.0,0.00037084]
[1644541625680,0.43824876,43591.0,43580.0,0.29404933]
[1644541625681,0.32343,43591.0,43580.0,0.29404933]
[1644541625880,0.29377633,43588.0,43580.0,0.29404933]
[1644541626082,0.29377633,43588.0,43579.0,0.00148375]
[1644541626083,0.32343,43587.0,43579.0,0.00148375]
[1644541626290,0.25540915,43585.0,43579.0,0.00148375]
[1644541626480,0.38084627,43584.0,43579.0,0.00148375]
[1644541626679,0.380848,43582.0,43579.0,0.00148375]
[1644541626880,0.380848,43582.0,43570.0,0.00038064]
[1644541627082,0.3320622,43579.0,43572.0,0.27390273]
[1644541627327,0.05741627,43584.0,43575.0,0.32343]
[1644541627517,0.32343,43583.0,43572.0,0.27390273]
[1644541627717,0.05741627,43584.0,43572.0,0.27390273]
[1644541628220,0.27459011,43578.0,43577.0,0.000372]
[1644541628418,0.32343,43578.0,43577.0,0.000372]
[1644541628828,0.32343,43581.0,43577.0,0.000372]
[1644541629020,0.26081147,43578.0,43577.0,0.000372]
[1644541629219,0.64166413,43578.0,43571.0,0.07431353]
[1644541629422,0.64628974,43577.0,43570.0,0.00038064]
[1644541629621,0.64628974,43577.0,43570.0,0.00186885]
[1644541629820,0.32343,43575.0,43566.0,0.15659451]
[1644541630022,0.85,43576.0,43566.0,0.15659451]
[1644541630224,0.24792875,43570.0,43566.0,0.15659451]
[1644541630424,0.057434,43573.0,43566.0,0.22506213]
[1644541630824,0.05,43584.0,43567.0,0.32343]
[1644541631084,0.05,43584.0,43578.0,0.08822062]
[1644541631381,0.19591799,43581.0,43567.0,0.32343]
[1644541631575,0.09591799,43581.0,43567.0,0.32343]
[1644541631774,0.27267021,43580.0,43573.0,0.31927224]
[1644541631976,0.09591799,43581.0,43573.0,0.31927224]
[1644541632177,0.0385,43581.0,43570.0,0.00076128]
[1644541632379,0.0385,43581.0,43564.0,0.07145862]
[1644541632380,1.12343,43580.0,43564.0,0.07145862]
[1644541632578,0.057423,43579.0,43564.0,0.07145862]
[1644541632776,0.057423,43579.0,43571.0,0.06544147]
[1644541632975,0.8,43580.0,43571.0,0.06544147]
[1644541633176,0.31027735,43575.0,43571.0,0.06544147]
[1644541633377,0.7997241,43580.0,43559.0,0.19339872]
[1644541633577,0.8571461,43580.0,43560.0,0.32343]
[1644541633777,0.8571461,43580.0,43559.0,0.19339872]
[1644541633980,0.8571461,43580.0,43564.0,0.057421]
[1644541634378,0.32343,43575.0,43564.0,0.057421]
[1644541634679,0.32343,43575.0,43563.0,0.22761023]
[1644541634680,0.33837588,43576.0,43563.0,0.22761023]
[1644541635115,0.33837588,43576.0,43564.0,0.31139496]
[1644541635418,0.36004879,43581.0,43571.0,0.41293547]
[1644541635815,0.36004879,43581.0,43578.0,0.07456194]
[1644541636015,0.32343,43580.0,43570.0,0.33001455]
[1644541636215,0.1,43581.0,43571.0,0.32343]
[1644541636414,0.27072391,43578.0,43571.0,0.32343]
[1644541636618,0.00056588,43577.0,43571.0,0.32343]
[1644541637217,0.00056588,43577.0,43576.0,0.06655703]
[1644541637419,0.00056588,43577.0,43576.0,0.38998703]
[1644541637622,0.00478597,43585.0,43576.0,0.38998703]
[1644541637816,0.15,43593.0,43583.0,0.06998198]
[1644541638017,0.1,43593.0,43583.0,0.06998198]
[1644541638218,0.29200736,43588.0,43583.0,0.06998198]
[1644541638419,0.29200736,43588.0,43577.0,0.00013061]
[1644541638666,0.29200736,43588.0,43576.0,0.51748788]
[1644541638867,0.29200736,43588.0,43575.0,0.057405]
[1644541639069,0.05,43584.0,43564.0,0.3]
[1644541639272,0.05,43584.0,43575.0,0.25745974]
[1644541639468,0.05,43584.0,43576.0,0.32343]
[1644541639469,0.25923497,43582.0,43576.0,0.32343]
[1644541639668,0.05056586,43585.0,43577.0,0.32343]
[1644541639869,0.05056586,43585.0,43578.0,0.32343]
[1644541640067,0.05,43585.0,43579.0,0.32343]
[1644541640269,0.00056586,43583.0,43580.0,0.32343]
[1644541640570,0.00056586,43583.0,43581.0,0.67638164]
[1644541640771,0.00056586,43583.0,43581.0,0.41035464]
[1644541640970,0.00056586,43583.0,43582.0,0.32343]
[1644541641170,0.1,43593.0,43582.0,0.32343]
[1644541641569,0.1,43593.0,43583.0,0.114789]
[1644541641777,0.1,43593.0,43586.0,0.32343]
[1644541641969,0.1,43593.0,43587.0,0.31317598]
[1644541642174,0.03148231,43601.0,43589.0,1.0]
[1644541642422,0.03148231,43601.0,43591.0,0.35384501]
[1644541642622,0.1,43612.0,43592.0,0.38080458]
[1644541642821,0.34246135,43606.0,43599.0,0.25583418]
[1644541643019,0.34246135,43606.0,43596.0,0.057381]
[1644541643221,0.34246135,43606.0,43591.0,0.26392091]
[1644541643420,0.34246135,43606.0,43582.0,0.3]
[1644541643622,0.05,43601.0,43577.0,0.3]
[1644541643820,0.057401,43599.0,43577.0,0.057399]
[1644541644018,0.33040918,43594.0,43587.0,0.28633651]
[1644541644219,0.33040918,43594.0,43588.0,0.32343]
[1644541644425,0.33040918,43594.0,43589.0,0.32343]
[1644541644619,0.33040918,43594.0,43590.0,0.32343]
[1644541644823,0.33040918,43594.0,43591.0,0.32343]
[1644541645020,0.3308403,43594.0,43592.0,0.08342774]
[1644541645220,0.3308403,43594.0,43582.0,0.3]
[1644541645420,0.3308403,43594.0,43584.0,0.34947915]
[1644541645620,0.3308403,43594.0,43585.0,0.32343]
[1644541645821,0.3308403,43594.0,43578.0,0.114792]
[1644541646068,0.33040918,43594.0,43581.0,0.22582039]
[1644541646269,0.00043112,43592.0,43582.0,0.32343]
[1644541646869,0.00043112,43592.0,43590.0,0.07998865]
[1644541647268,0.33040918,43594.0,43590.0,0.07998865]
[1644541647469,0.057402,43593.0,43590.0,0.07998865]
[1644541647669,0.00056561,43593.0,43582.0,0.32343]
[1644541647869,0.00056561,43593.0,43580.0,0.32343]
[1644541648070,0.2765903,43595.0,43587.0,0.30800935]
[1644541648270,0.2765903,43595.0,43573.0,0.32343]
[1644541648471,0.3339893,43595.0,43578.0,0.057401]
[1644541648670,0.05740103,43594.0,43587.0,0.06800919]
[1644541648873,0.31124434,43593.0,43580.0,0.32343]
[1644541649075,0.31124434,43593.0,43578.0,0.32343]
[1644541649272,0.37343,43594.0,43581.0,0.3032871]
[1644541649473,0.36611721,43594.0,43581.0,0.3032871]
[1644541649923,0.11480395,43593.0,43587.0,0.06501077]
[1644541650125,0.21095371,43588.0,43587.0,0.06501077]
[1644541650323,0.32343,43588.0,43587.0,0.06501077]
[1644541650521,0.05740295,43593.0,43587.0,0.06501077]
[1644541651021,0.32343,43592.0,43587.0,0.06501077]
[1644541651222,0.32343,43590.0,43587.0,0.06501077]
[1644541651624,0.057404,43591.0,43581.0,0.3032871]
[1644541652226,0.05740554,43590.0,43581.0,0.3032871]
[1644541652624,0.05,43587.0,43582.0,0.07668872]
[1644541652824,0.08137249,43587.0,43582.0,0.07668872]
[1644541653225,0.21691021,43586.0,43582.0,0.07668872]
[1644541653425,0.21691021,43586.0,43571.0,0.32343]
[1644541653675,0.21691021,43586.0,43576.0,0.0018041]
[1644541653676,0.29306814,43584.0,43576.0,0.0018041]
[1644541654273,0.380849,43583.0,43576.0,0.0018041]
[1644541654477,0.32343,43582.0,43574.0,0.00013044]
[1644541654675,0.057421,43577.0,43574.0,0.00045104]
[1644541654877,0.057421,43577.0,43575.0,0.32343]
[1644541655074,0.057421,43577.0,43574.0,0.00045104]
[1644541655475,0.05,43576.0,43574.0,0.00045104]
[1644541655674,0.057421,43577.0,43575.0,0.32343]
[1644541655874,0.052421,43577.0,43574.0,0.08839558]
[1644541656574,0.052421,43577.0,43575.0,0.32343]
[1644541656775,0.052421,43577.0,43573.0,0.00045105]
[1644541656776,0.37343,43576.0,43573.0,0.00045105]
[1644541656977,0.057429,43575.0,43570.0,0.00013044]
[1644541657174,0.62656208,43574.0,43563.0,0.00013044]
[1644541657431,0.05,43565.0,43560.0,0.00013044]
[1644541657627,0.25313208,43574.0,43561.0,0.32343]
[1644541657628,0.05,43562.0,43561.0,0.32343]
[1644541657926,0.05,43562.0,43556.0,0.00083488]
[1644541657927,0.107448,43562.0,43556.0,0.00083488]
[1644541658122,0.32343,43561.0,43556.0,0.00083488]
[1644541658323,0.05,43558.0,43556.0,0.00083488]
[1644541658722,0.32343,43557.0,43556.0,0.00083488]
[1644541659322,0.55168618,43557.0,43556.0,0.00083488]
[1644541660123,0.59398618,43557.0,43556.0,0.00083488]
[1644541660323,0.59398618,43557.0,43556.0,4.88e-06]
[1644541660523,0.92826522,43557.0,43556.0,4.88e-06]
[1644541660725,0.92826522,43557.0,43551.0,0.0006736]
[1644541660726,1.07826522,43557.0,43554.0,0.00044561]
[1644541660928,0.37343,43555.0,43554.0,5.61e-06]
[1644541661175,0.07526325,43553.0,43550.0,1.409e-05]
[1644541661382,0.05,43551.0,43537.0,0.09060486]
[1644541661579,1.44759794,43553.0,43538.0,0.3]
[1644541661580,0.07526325,43553.0,43538.0,0.3]
[1644541661779,0.07526325,43553.0,43537.0,0.00094384]
[1644541661978,0.057457,43551.0,43538.0,0.32177137]
[1644541662176,0.4,43557.0,43539.0,0.32343]
[1644541662376,0.42,43558.0,43540.0,0.32343]
[1644541662581,0.05,43550.0,43546.0,0.32343]
[1644541662778,0.05,43550.0,43538.0,0.32177137]
[1644541662779,0.05,43550.0,43547.0,0.32343]
[1644541662976,0.09590898,43550.0,43545.0,0.32250054]
[1644541663180,0.09590898,43550.0,43537.0,0.00094384]
[1644541663181,0.32343,43545.0,43537.0,0.00094384]
[1644541663379,0.05479078,43546.0,43537.0,0.00094384]
[1644541663577,0.05479078,43546.0,43538.0,0.32343]
[1644541663578,0.00479078,43546.0,43538.0,0.32343]
[1644541663776,0.0423,43545.0,43538.0,0.38683033]
[1644541664381,0.0923,43545.0,43538.0,0.38683033]
[1644541664578,0.0923,43545.0,43537.0,0.00094384]
[1644541664579,0.05,43544.0,43537.0,0.00094384]
[1644541664831,0.05,43540.0,43537.0,0.00094384]
[1644541665025,0.0423,43545.0,43537.0,0.00094384]
[1644541665026,0.37343,43544.0,43537.0,0.00094384]
[1644541665228,0.0423,43545.0,43537.0,0.00094384]
[1644541665426,0.0423,43545.0,43538.0,0.32343]
[1644541665625,0.0423,43545.0,43538.0,0.06665056]
[1644541665927,0.0423,43545.0,43539.0,0.057456]
[1644541666227,0.0423,43545.0,43540.0,0.32343]
[1644541666427,0.63385825,43544.0,43538.0,0.00043463]
[1644541666629,0.63385825,43544.0,43537.0,0.00094384]
[1644541666630,0.32343,43540.0,43537.0,0.00094384]
[1644541666927,0.05,43541.0,43537.0,0.00094384]
[1644541666928,0.53529547,43538.0,43537.0,0.00094384]
[1644541667126,0.63529547,43538.0,43537.0,0.00094384]
[1644541667328,0.75555316,43538.0,43537.0,0.00094384]
[1644541667527,1.40659665,43538.0,43537.0,0.00094384]
[1644541667733,1.40659665,43538.0,43537.0,3.84e-06]
[1644541667734,1.07447349,43538.0,43537.0,3.84e-06]
[1644541668330,1.02447349,43538.0,43537.0,3.84e-06]
[1644541668773,1.12447349,43538.0,43537.0,3.84e-06]
[1644541668973,0.838967,43538.0,43537.0,3.84e-06]
[1644541669372,0.788967,43538.0,43537.0,3.84e-06]
[1644541669772,0.838967,43538.0,43537.0,3.84e-06]
[1644541670175,0.788967,43538.0,43537.0,3.84e-06]
[1644541670379,0.688967,43538.0,43537.0,3.84e-06]
[1644541670677,0.68869082,43538.0,43537.0,3.84e-06]
[1644541671877,0.73869082,43538.0,43537.0,3.84e-06]
[1644541672342,0.68869082,43538.0,43537.0,3.84e-06]
[1644541672530,0.68566982,43538.0,43537.0,3.84e-06]
[1644541673531,0.68566982,43538.0,43535.0,0.00043587]
[1644541673731,0.37343,43536.0,43532.0,0.00013631]
[1644541673931,0.323562,43535.0,43530.0,0.00013631]
[1644541674131,0.373562,43535.0,43534.0,0.00043588]
[1644541674736,0.323562,43533.0,43529.0,0.00013631]
[1644541674932,1.00043,43534.0,43528.0,0.00174379]
[1644541674933,0.323562,43529.0,43528.0,0.00174379]
[1644541675133,0.323562,43528.0,43516.0,0.00013631]
[1644541675334,0.107487,43529.0,43515.0,0.07149907]
[1644541675535,0.107487,43529.0,43515.0,0.07136276]
[1644541675536,0.323562,43528.0,43515.0,0.07136276]
[1644541675832,0.323562,43522.0,43515.0,6.57e-05]
[1644541676068,0.323591,43525.0,43515.0,6.57e-05]
[1644541676669,0.623591,43524.0,43515.0,6.57e-05]
[1644541676872,0.323591,43516.0,43515.0,6.57e-05]
[1644541677069,0.50950864,43516.0,43515.0,6.57e-05]
[1644541677268,0.55950864,43516.0,43515.0,6.57e-05]
[1644541677872,0.323591,43515.0,43507.0,0.00013631]
[1644541678076,0.323623,43515.0,43506.0,0.00089954]
[1644541678268,0.323623,43513.0,43506.0,0.00089954]
[1644541678467,0.62003798,43516.0,43506.0,0.00089954]
[1644541678468,0.323623,43511.0,43506.0,0.00089954]
[1644541678669,0.323623,43509.0,43506.0,0.00089954]
[1644541678971,0.323623,43509.0,43507.0,0.00042961]
[1644541678972,0.381135,43509.0,43507.0,0.00042961]
[1644541679171,0.365923,43508.0,43507.0,0.00042961]
[1644541679469,0.415923,43508.0,43507.0,0.00042961]
[1644541679669,0.62946511,43508.0,43507.0,0.00042961]
[1644541679925,1.057524,43506.0,43502.0,0.00013631]
[1644541680127,0.323623,43505.0,43501.0,0.02002413]
[1644541680327,0.31646115,43504.0,43501.0,0.02002413]
[1644541680525,0.31646115,43504.0,43499.0,0.00133205]
[1644541680526,1.0,43502.0,43499.0,0.00133205]
[1644541680730,0.057536,43499.0,43493.0,0.00013631]
[1644541680927,0.057536,43499.0,43484.0,0.00013631]
[1644541680928,0.0225,43497.0,43484.0,0.00013631]
[1644541681127,0.0225,43497.0,43476.0,0.01867732]
[1644541681128,0.20167128,43486.0,43479.0,0.00013631]
[1644541681328,1.90554,43493.0,43479.0,0.00013631]
[1644541681329,0.365923,43485.0,43479.0,0.00013631]
[1644541681530,0.0423,43484.0,43479.0,0.00013631]
[1644541681725,0.3225,43497.0,43479.0,0.00013631]
[1644541681928,0.0423,43496.0,43479.0,0.00013631]
[1644541682126,0.323623,43495.0,43485.0,0.08899625]
[1644541682328,0.24413477,43491.0,43484.0,0.00013631]
[1644541682528,0.24413477,43491.0,43478.0,0.0014045]
[1644541682529,0.365923,43490.0,43481.0,0.00013631]
[1644541682726,0.365923,43490.0,43479.0,0.00013631]
[1644541683331,0.365923,43490.0,43484.0,0.08844893]
[1644541683771,0.365923,43490.0,43484.0,0.0004221]
[1644541683971,0.323623,43490.0,43484.0,0.0004221]
[1644541684177,0.05,43489.0,43484.0,0.0004221]
[1644541684376,0.323623,43488.0,43484.0,0.0004221]
[1644541684575,1.72829131,43485.0,43484.0,0.0004221]
[1644541684774,0.323623,43485.0,43483.0,0.00014556]
[1644541684974,0.0423,43491.0,43483.0,0.00014556]
[1644541684975,0.323623,43484.0,43483.0,0.00014556]
[1644541685378,0.0423,43491.0,43483.0,0.38128156]
[1644541685578,0.0423,43491.0,43483.0,0.43128156]
[1644541685774,0.0423,43491.0,43483.0,0.32376856]
[1644541686176,0.0423,43491.0,43488.0,0.20050423]
[1644541686376,0.01833842,43495.0,43490.0,0.31804674]
[1644541686577,0.01833842,43495.0,43491.0,0.323623]
[1644541687425,0.0005602,43501.0,43493.0,0.323623]
[1644541687625,0.0005602,43501.0,43492.0,0.24126121]
[1644541688026,0.323623,43499.0,43491.0,0.00055835]
[1644541688227,0.323623,43499.0,43491.0,0.00042204]
[1644541688426,0.323623,43499.0,43490.0,0.31804674]
[1644541688637,0.323623,43499.0,43493.0,0.00042202]
[1644541688638,0.323623,43498.0,43493.0,0.00042202]
[1644541689428,0.373623,43498.0,43493.0,0.00042202]
[1644541689630,0.373623,43498.0,43487.0,0.00013631]
[1644541689631,0.323623,43497.0,43487.0,0.00013631]
[1644541689830,0.323623,43497.0,43493.0,0.00042201]
[1644541690627,0.55365139,43497.0,43493.0,0.00042201]
[1644541690830,0.323623,43497.0,43488.0,0.00013631]
[1644541691068,0.323623,43497.0,43487.0,0.06875316]
[1644541691270,0.323623,43497.0,43487.0,0.06861685]
[1644541691470,0.323623,43497.0,43487.0,0.26436703]
[1644541691876,0.323623,43497.0,43486.0,0.00013631]
[1644541691877,0.05752776,43494.0,43486.0,0.00013631]
[1644541692072,0.65865376,43493.0,43484.0,0.00013631]
[1644541692271,0.70865376,43493.0,43490.0,0.00041677]
[1644541692475,0.323623,43492.0,43490.0,0.00041677]
[1644541692870,0.63579553,43491.0,43490.0,0.00041677]
[1644541693073,0.11505631,43497.0,43490.0,0.00041677]
[1644541693074,0.343037,43500.0,43490.0,0.26752045]
[1644541693276,0.300737,43500.0,43490.0,0.26710368]
[1644541693473,0.01891425,43498.0,43490.0,0.26710368]
[1644541693673,0.323623,43497.0,43490.0,0.26710368]
[1644541694076,0.323623,43497.0,43490.0,0.24223656]
[1644541694573,0.323623,43497.0,43491.0,0.00041676]
[1644541695221,0.323623,43497.0,43493.0,0.08712654]
[1644541695424,0.00055862,43501.0,43493.0,0.08712654]
[1644541695624,0.00479394,43503.0,43500.0,0.07471241]
[1644541696024,0.7,43500.0,43498.0,0.06998664]
[1644541696224,0.7,43500.0,43488.0,0.26578042]
[1644541696225,0.25705129,43501.0,43495.0,0.26765508]
[1644541696425,0.00038849,43501.0,43495.0,0.6113927]
[1644541696622,0.00038849,43501.0,43496.0,0.323623]
[1644541696823,0.00479394,43503.0,43496.0,0.6265876]
[1644541697024,0.00479394,43503.0,43498.0,0.323623]
[1644541697025,0.00051352,43501.0,43498.0,0.323623]
[1644541697223,0.00479394,43503.0,43499.0,0.06724427]
[1644541697427,0.00479394,43503.0,43500.0,0.323623]
[1644541697722,0.00479394,43503.0,43502.0,0.56939218]
[1644541697923,0.00479394,43503.0,43491.0,0.3]
[1644541698123,0.00479394,43503.0,43495.0,0.323623]
[1644541698325,0.00479394,43503.0,43494.0,0.0423]
[1644541698575,0.00479394,43503.0,43495.0,0.323623]
[1644541698777,0.00479394,43503.0,43500.0,0.2693346]
[1644541698979,0.00479394,43503.0,43501.0,0.38112]
[1644541699175,0.00479394,43503.0,43501.0,0.323623]